fUSD/lending_fUSD_20240517
["ID","MTS","AMOUNT","RATE_DAILY","PERIOD"]
[327252265,1715929029360,20204.6800774,8.219e-05,2]
[327252266,1715929033098,25162.07541163,8.219e-05,2]
[327252267,1715929053104,70989.08781577,8.219e-05,2]
[327252268,1715929053130,27248.62203782,8.219e-05,2]
[327252313,1715929833807,-778.0146266,9.069e-05,2]
[327252314,1715929833820,-155.0,9.07e-05,2]
[327252315,1715929833831,-1297.5126373,9.072e-05,2]
[327252316,1715929833841,-1934.47471694,9.078e-05,2]
[327252317,1715929833853,-274.6845806,9.078e-05,2]
[327252318,1715929833865,-1329.28402773,9.078e-05,2]
[327252319,1715929833879,-11316.93254966,9.078e-05,2]
[327252320,1715929833887,-2298.82338962,9.082e-05,2]
[327252321,1715929833898,-186.92,9.922e-05,2]
[327252322,1715929833907,-500.0,0.00010025,2]
[327252323,1715929833917,-904.96,0.00010176,2]
[327252324,1715929833926,-250.0,0.00010198,2]
[327252325,1715929833935,-150.99,0.00010198,2]
[327252326,1715929833945,-4031.79,0.00010207,2]
[327252327,1715929833955,-160.22,0.00010285,2]
[327252328,1715929833964,-687.82,0.00010285,2]
[327252329,1715929833974,-270.27,0.00010308,2]
[327252330,1715929833984,-636.04,0.0001063,15]
[327252331,1715929833993,-160.22,0.00010821,2]
[327252332,1715929834002,-16815.68,0.00010899,2]
[327252333,1715929834011,-200.0,0.0001092,2]
[327252334,1715929834021,-183.59,0.00010928,2]
[327252335,1715929834030,-1799.57,0.00010928,2]
[327252336,1715929834039,-7314.62588141,0.00010957,7]
[327252337,1715929834049,-499.99,0.00010957,2]
[327252338,1715929834058,-774.82,0.00010959,2]
[327252339,1715929834067,-564.05,0.00010959,2]
[327252340,1715929834077,-168.67,0.00010978,2]
[327252341,1715929834086,-200.0,0.00011,2]
[327252342,1715929834095,-250.0,0.00011015,2]
[327252343,1715929834104,-1413.27,0.00011029,2]
[327252344,1715929834113,-186.92,0.00011162,2]
[327252345,1715929834126,-1841.56306853,0.00011315,2]
[327252346,1715929834140,-743.825,0.00011315,2]
[327252347,1715929834166,-595.06,0.00011315,2]
[327252348,1715929834280,-270.26587227,0.00011315,2]
[327252364,1715929838480,-36913.40259499,0.00011315,2]
[327252366,1715929838489,-55398.0,0.00011363,2]
[327252368,1715929838499,-86137.26754748,0.00011363,2]
[327252370,1715929838510,-12103.73245252,0.00011363,2]
[327252372,1715929838520,-904.96,0.00011448,2]
[327252374,1715929838529,-167.6,0.00011507,2]
[327252376,1715929838539,-256.0,0.00011709,2]
[327252378,1715929838548,-3407.82,0.00011709,2]
[327252380,1715929838558,-150.0,0.00012026,2]
[327252383,1715929838568,-150.0,0.00012045,2]
[327252387,1715929838583,-150.0,0.00012047,2]
[327252389,1715929838599,-150.0,0.0001205,2]
[327252391,1715929838608,-150.0,0.00012051,2]
[327252393,1715929838618,-150.0,0.00012052,2]
[327252395,1715929838630,-19626.96507151,0.00012054,2]
[327252397,1715929838639,-415.3,0.00012055,2]
[327252399,1715929838648,-1602.83,0.00012055,2]
[327252401,1715929838657,-415.3,0.00012055,2]
[327252403,1715929838666,-415.3,0.00012055,2]
[327252405,1715929838675,-415.3,0.00012055,2]
[327252407,1715929838685,-415.3,0.00012055,2]
[327252409,1715929838694,-415.3,0.00012055,2]
[327252411,1715929838704,-415.3,0.00012055,2]
[327252413,1715929838713,-415.3,0.00012055,2]
[327252416,1715929838723,-415.3,0.00012055,2]
[327252418,1715929838735,-150.0,0.00012055,2]
[327252420,1715929838746,-150.0,0.00012059,2]
[327252422,1715929838755,-150.0,0.00012061,2]
[327252424,1715929838764,-150.0,0.00012064,2]
[327252426,1715929838774,-150.0,0.00012069,2]
[327252428,1715929838785,-150.0,0.00012071,2]
[327252430,1715929838794,-150.0,0.00012076,2]
[327252432,1715929838803,-150.0,0.00012078,2]
[327252433,1715929838812,-150.0,0.00012078,2]
[327252435,1715929838822,-150.0,0.00012082,2]
[327252437,1715929838832,-150.0,0.00012086,2]
[327252439,1715929838841,-150.0,0.00012087,2]
[327252440,1715929838850,-150.0,0.00012094,2]
[327252441,1715929838860,-150.0,0.00012094,2]
[327252442,1715929838873,-150.0,0.00012096,2]
[327252443,1715929838882,-150.0,0.00012096,2]
[327252444,1715929838891,-150.0,0.00012097,2]
[327252445,1715929838900,-150.0,0.00012099,2]
[327252446,1715929838909,-150.0,0.00012101,2]
[327252447,1715929838918,-150.0,0.00012101,2]
[327252448,1715929838927,-150.0,0.00012103,2]
[327252449,1715929838937,-150.0,0.00012105,2]
[327252450,1715929838946,-150.0,0.00012106,2]
[327252451,1715929838956,-150.0,0.00012112,2]
[327252452,1715929838965,-150.0,0.00012114,2]
[327252453,1715929838975,-150.0,0.00012115,2]
[327252454,1715929838985,-150.0,0.00012118,2]
[327252455,1715929838995,-3686.245,0.0001212,2]
[327252456,1715929839004,-150.0,0.00012122,2]
[327252457,1715929839014,-150.0,0.00012122,2]
[327252458,1715929839024,-150.0,0.00012124,2]
[327252459,1715929839035,-150.0,0.00012127,2]
[327252460,1715929839045,-1500.0,0.0001213,2]
[327252461,1715929839055,-150.0,0.00012132,2]
[327252462,1715929839066,-150.0,0.00012136,2]
[327252463,1715929839076,-150.0,0.00012136,2]
[327252464,1715929839086,-150.0,0.00012138,2]
[327252465,1715929839096,-150.0,0.00012144,2]
[327252466,1715929839106,-150.0,0.00012145,2]
[327252467,1715929839117,-150.0,0.00012147,2]
[327252468,1715929839129,-1500.0,0.00012151,2]
[327252469,1715929839139,-150.0,0.00012158,2]
[327252470,1715929839148,-150.0,0.00012159,2]
[327252471,1715929839158,-150.0,0.00012161,2]
[327252472,1715929839168,-150.0,0.00012164,2]
[327252473,1715929839178,-150.0,0.00012166,2]
[327252474,1715929839188,-150.0,0.00012169,2]
[327252475,1715929839197,-150.0,0.0001217,2]
[327252476,1715929839207,-286.57450461,0.00012172,2]
[327252477,1715929839220,-150.0,0.00012176,2]
[327252478,1715929839230,-150.0,0.00012178,2]
[327252479,1715929839239,-150.0,0.00012178,2]
[327252480,1715929839250,-150.0,0.00012183,2]
[327252481,1715929839260,-150.0,0.00012189,2]
[327252482,1715929839270,-150.0,0.0001219,2]
[327252483,1715929839280,-190.72025328,0.00012196,2]
[327252484,1715929839290,-150.0,0.00012199,2]
[327252485,1715929839300,-150.0,0.000122,2]
[327252487,1715929839311,-150.0,0.00012202,2]
[327252489,1715929839321,-150.0,0.00012209,2]
[327252491,1715929839331,-150.0,0.00012209,2]
[327252494,1715929839341,-150.0,0.00012211,2]
[327252496,1715929839351,-150.0,0.00012214,2]
[327252497,1715929839360,-150.0,0.00012214,2]
[327252500,1715929839373,-150.0,0.00012218,2]
[327252502,1715929839383,-150.0,0.00012225,2]
[327252504,1715929839394,-85591.0918,0.00012228,2]
[327252506,1715929839404,-150.0,0.00012233,2]
[327252508,1715929839414,-150.0,0.00012236,2]
[327252510,1715929839424,-150.0,0.00012239,2]
[327252512,1715929839434,-150.0,0.00012243,2]
[327252514,1715929839444,-150.0,0.00012245,2]
[327252516,1715929839454,-150.0,0.00012254,2]
[327252518,1715929839464,-150.0,0.00012259,2]
[327252520,1715929839474,-150.0,0.0001226,2]
[327252522,1715929839484,-150.0,0.00012261,2]
[327252524,1715929839494,-150.0,0.00012261,2]
[327252526,1715929839504,-150.0,0.00012262,2]
[327252528,1715929839514,-150.0,0.00012265,2]
[327252530,1715929839523,-150.0,0.00012265,2]
[327252532,1715929839534,-150.0,0.00012274,2]
[327252534,1715929839544,-150.0,0.00012276,2]
[327252537,1715929839555,-150.0,0.0001228,2]
[327252539,1715929839565,-150.0,0.00012283,2]
[327252541,1715929839575,-150.0,0.00012293,2]
[327252543,1715929839584,-183.59,0.00012295,2]
[327252545,1715929839594,-150.0,0.00012295,2]
[327252547,1715929839604,-150.0,0.00012295,2]
[327252549,1715929839614,-150.0,0.00012297,2]
[327252551,1715929839626,-150.0,0.00012297,2]
[327252553,1715929839637,-150.0,0.00012298,2]
[327252555,1715929839647,-150.0,0.000123,2]
[327252557,1715929839657,-150.0,0.00012303,2]
[327252559,1715929839668,-150.0,0.00012311,2]
[327252562,1715929839679,-783.29624007,0.00012327,2]
[327252564,1715929839689,-207.92488696,0.00012327,2]
[327252566,1715929839698,-3742.54917557,0.00012327,2]
[327252568,1715929839708,-3671.735,0.00012328,2]
[327252570,1715929839718,-500.0,0.00012328,2]
[327252572,1715929839728,-501.73085927,0.00012328,2]
[327252574,1715929839740,-1841.63511,0.00012328,2]
[327252576,1715929839752,-500.0,0.00012328,2]
[327252578,1715929839761,-500.0,0.00012328,2]
[327252580,1715929839772,-500.0,0.00012328,2]
[327252582,1715929839783,-500.0,0.00012328,2]
[327252584,1715929839793,-500.0,0.00012328,2]
[327252586,1715929839803,-554.42107919,0.00012328,2]
[327252588,1715929839813,-500.0,0.00012328,2]
[327252590,1715929839825,-163.60398738,0.00012328,2]
[327252592,1715929839835,-200.0,0.00012328,2]
[327252593,1715929839844,-63480.86139786,0.00012328,2]
[327252609,1715929840325,-1565.77456399,0.00012328,2]
[327252610,1715929840338,-3887.96353,0.00012328,2]
[327252611,1715929840350,-995.02138541,0.00012328,2]
[327252612,1715929840392,-30070.37912274,0.00012328,2]
[327252613,1715929840401,-500.0,0.00012328,2]
[327252614,1715929840411,-500.0,0.00012328,2]
[327252615,1715929840421,-559.22488888,0.00012328,2]
[327252616,1715929840441,-158.084739,0.000124,2]
[327252617,1715929840451,-166.469733,0.000124,2]
[327252618,1715929840461,-165.215495,0.000124,2]
[327252619,1715929840471,-183.21489,0.000124,2]
[327252620,1715929840481,-179.691526,0.000124,2]
[327252621,1715929840491,-364.438197,0.000124,2]
[327252622,1715929840501,-1777.371832,0.000124,2]
[327252623,1715929840511,-10934.65564137,0.000124,2]
[327252624,1715929840521,-186.92,0.00012402,2]
[327252625,1715929840531,-5005.0,0.00012463,7]
[327252626,1715929840540,-529.2626,0.00012499,2]
[327252627,1715929840550,-155.0,0.000125,2]
[327252628,1715929840560,-252.32718806,0.000125,2]
[327252629,1715929840570,-2203.435,0.000125,2]
[327252630,1715929840579,-17586.60086623,0.0001258,2]
[327252631,1715929840589,-500.0,0.00012598,2]
[327252632,1715929840599,-500.0,0.00012598,2]
[327252633,1715929840609,-328.51,0.00012598,2]
[327252634,1715929840618,-500.0,0.00012598,2]
[327252635,1715929840630,-162.79274073,0.00012598,2]
[327252636,1715929840640,-500.0,0.00012598,2]
[327252637,1715929840649,-500.0,0.00012598,2]
[327252638,1715929840659,-500.0,0.00012598,2]
[327252639,1715929840669,-500.0,0.00012598,2]
[327252640,1715929840679,-500.0,0.00012598,2]
[327252641,1715929840689,-463.59255669,0.00012598,2]
[327252642,1715929840699,-500.0,0.00012598,2]
[327252643,1715929840709,-728.57,0.00012598,2]
[327252644,1715929840718,-500.0,0.00012598,2]
[327252645,1715929840728,-500.0,0.00012598,2]
[327252646,1715929840741,-43861.48357971,0.00012598,2]
[327252647,1715929840751,-500.0,0.00012598,2]
[327252648,1715929840760,-525.65892703,0.00012599,2]
[327252649,1715929840770,-500.0,0.00012599,2]
[327252650,1715929840781,-500.0,0.00012599,2]
[327252651,1715929840791,-500.0,0.00012599,2]
[327252652,1715929840801,-500.0,0.00012599,2]
[327252653,1715929840810,-500.0,0.00012599,2]
[327252654,1715929840823,-441.571357,0.00012599,2]
[327252655,1715929840833,-516.10079461,0.00012599,2]
[327252656,1715929840842,-441.571357,0.00012599,2]
[327252657,1715929840852,-500.0,0.00012599,2]
[327252658,1715929840862,-500.0,0.00012599,2]
[327252659,1715929840872,-272.39,0.00012599,2]
[327252660,1715929840882,-151.0,0.00012599,2]
[327252661,1715929840892,-728.57,0.00012599,2]
[327252662,1715929840907,-728.57,0.00012599,2]
[327252663,1715929840916,-151.0,0.00012599,2]
[327252664,1715929840926,-70995.72226811,0.000126,2]
[327252665,1715929840940,-3793.98626351,0.000126,2]
[327252666,1715929841010,-151.0,0.00012599,2]
[327252667,1715929841020,-104.471,0.000126,2]
[327252668,1715929841032,-652.13429658,0.000126,2]
[327252669,1715929841043,-404.24487,0.000126,2]
[327252670,1715929841055,-1348.37030117,0.000126,2]
[327252677,1715929843849,-1780.21,9.259e-05,2]
[327252678,1715929843859,-1780.21,0.00011523,2]
[327252679,1715929843870,-1381.86,0.00012599,2]
[327252680,1715929843881,-1381.86,0.00012599,2]
[327252681,1715929843890,-223070.72373814,0.000126,2]
[327252682,1715929843902,-102842.16339496,0.000126,2]
[327252683,1715929843912,-151.0,0.000126,2]
[327252684,1715929843922,-151.0,0.000126,2]
[327252685,1715929843931,-441.571357,0.000126,2]
[327252686,1715929843941,-441.571357,0.000126,2]
[327252687,1715929843950,-284.957416,0.000126,2]
[327252688,1715929843960,-151.0,0.000126,2]
[327252689,1715929843970,-151.0,0.000126,2]
[327252690,1715929843979,-898.0,0.0001261,2]
[327252691,1715929843989,-746.0,0.0001261,2]
[327252692,1715929843999,-150.0,0.00012683,2]
[327252693,1715929844008,-299.85,0.00012683,2]
[327252694,1715929844018,-4506.09340358,0.000127,2]
[327252695,1715929844030,-314.7751,0.000127,2]
[327252696,1715929844039,-904.96,0.0001272,2]
[327252697,1715929844049,-156.17076825,0.00012738,2]
[327252698,1715929844059,-898.0,0.0001274,2]
[327252702,1715929844069,-746.0,0.0001274,2]
[327252705,1715929844080,-12651.55997179,0.0001275,2]
[327252707,1715929844089,-527.956,0.00012774,2]
[327252708,1715929844099,-251.743,0.00012774,2]
[327252709,1715929844109,-4390.496,0.00012774,2]
[327252710,1715929844119,-1464.0,0.00012774,2]
[327252711,1715929844131,-1059.0,0.00012774,2]
[327252712,1715929844140,-180.29438747,0.00012776,2]
[327252713,1715929844150,-1491.7876,0.0001278,2]
[327252714,1715929844160,-1262.9767,0.00012799,2]
[327252715,1715929844171,-18103.29,0.00012799,2]
[327252716,1715929844181,-64826.54,0.00012799,2]
[327252717,1715929844191,-151.0,0.00012799,2]
[327252718,1715929844202,-441.571357,0.00012799,2]
[327252719,1715929844211,-441.571357,0.00012799,2]
[327252720,1715929844222,-151.0,0.00012799,2]
[327252721,1715929844233,-151.0,0.00012799,2]
[327252722,1715929844244,-15355.58090456,0.000128,4]
[327252723,1715929844254,-17950.91,0.000128,2]
[327252724,1715929844264,-500.0,0.00012805,2]
[327252725,1715929844274,-500.0,0.00012814,2]
[327252726,1715929844285,-500.0,0.00012823,2]
[327252727,1715929844294,-500.0,0.00012832,2]
[327252728,1715929844303,-4895.0,0.00012832,2]
[327252729,1715929844313,-500.0,0.00012841,2]
[327252730,1715929844323,-500.0,0.00012849,2]
[327252731,1715929844334,-500.0,0.00012858,2]
[327252732,1715929844344,-500.0,0.00012867,2]
[327252733,1715929844355,-898.0,0.0001287,2]
[327252734,1715929844365,-746.0,0.0001287,2]
[327252735,1715929844376,-500.0,0.00012876,2]
[327252736,1715929844385,-1381.86,0.00012879,2]
[327252737,1715929844395,-3266.58945052,0.0001288,2]
[327252739,1715929844404,-5481.43,0.0001288,2]
[327252740,1715929844415,-500.0,0.00012885,2]
[327252741,1715929844425,-4594.74275023,0.00012886,2]
[327252742,1715929844435,-500.0,0.00012893,2]
[327252743,1715929844445,-500.0,0.00012895,2]
[327252744,1715929844456,-500.0,0.00012896,2]
[327252745,1715929844467,-500.0,0.00012896,2]
[327252746,1715929844479,-5263.28301421,0.00012898,2]
[327252747,1715929844488,-155.26995485,0.00012898,2]
[327252748,1715929844497,-1999.69862257,0.00012898,2]
[327252749,1715929844506,-1796.10943676,0.00012898,2]
[327252750,1715929844516,-5000.0,0.00012898,2]
[327252751,1715929844526,-1404.60220847,0.000129,2]
[327252752,1715929844535,-500.0,0.00012902,2]
[327252753,1715929844546,-500.0,0.00012911,2]
[327252754,1715929844558,-500.0,0.0001292,2]
[327252755,1715929844568,-500.0,0.00012929,2]
[327252756,1715929844578,-500.0,0.00012937,2]
[327252757,1715929844587,-441.571357,0.00012946,2]
[327252758,1715929844597,-441.571357,0.00012946,2]
[327252759,1715929844607,-500.0,0.00012946,2]
[327252760,1715929844616,-500.0,0.00012955,2]
[327252761,1715929844627,-151.0,0.00012955,2]
[327252762,1715929844638,-151.0,0.00012955,2]
[327252763,1715929844648,-500.0,0.00012964,2]
[327252764,1715929844658,-500.0,0.00012973,2]
[327252765,1715929844667,-151.0,0.00012981,2]
[327252766,1715929844677,-500.0,0.00012981,2]
[327252767,1715929844687,-500.0,0.00012989,2]
[327252768,1715929844697,-500.0,0.00012989,2]
[327252769,1715929844706,-500.0,0.00012989,2]
[327252770,1715929844716,-500.0,0.00012989,2]
[327252771,1715929844725,-728.57,0.00012989,2]
[327252773,1715929844735,-728.57,0.00012989,2]
[327252775,1715929844748,-1381.86,0.00012989,2]
[327252776,1715929844758,-4500.0,0.0001299,2]
[327252777,1715929844768,-285719.45760273,0.0001299,2]
[327252778,1715929844778,-4029.41509001,0.0001299,2]
[327252779,1715929844790,-151.0,0.0001299,2]
[327252780,1715929844799,-441.571357,0.0001299,2]
[327252781,1715929844809,-441.571357,0.0001299,2]
[327252782,1715929844820,-151.0,0.0001299,2]
[327252783,1715929844831,-151.0,0.0001299,2]
[327252784,1715929844841,-500.0,0.0001299,2]
[327252785,1715929844850,-862.7087259,0.00012991,2]
[327252786,1715929844860,-720.0050269,0.00012991,2]
[327252787,1715929844870,-577.3013279,0.00012991,2]
[327252788,1715929844880,-434.5976288,0.00012991,2]
[327252789,1715929844889,-291.8939298,0.00012991,2]
[327252790,1715929844899,-4048.20447334,0.00012996,2]
[327252791,1715929844910,-1005.4124249,0.00012996,2]
[327252792,1715929844920,-157.051714,0.00012997,2]
[327252793,1715929844929,-157.051714,0.00012997,2]
[327252794,1715929844939,-157.051714,0.00012997,2]
[327252795,1715929844948,-157.051714,0.00012997,2]
[327252796,1715929844958,-156.051714,0.00012997,2]
[327252797,1715929844967,-157.051714,0.00012997,2]
[327252798,1715929844977,-157.051714,0.00012997,2]
[327252799,1715929844986,-157.051714,0.00012997,2]
[327252800,1715929844996,-157.051714,0.00012997,2]
[327252801,1715929845006,-157.051714,0.00012997,2]
[327252802,1715929845015,-157.051714,0.00012997,2]
[327252803,1715929845025,-157.051714,0.00012997,2]
[327252804,1715929845035,-206.07247994,0.00012998,2]
[327252805,1715929845044,-157.051714,0.00012998,2]
[327252806,1715929845054,-157.051714,0.00012998,2]
[327252807,1715929845064,-157.051714,0.00012998,2]
[327252808,1715929845073,-157.051714,0.00012998,2]
[327252809,1715929845083,-157.051714,0.00012998,2]
[327252810,1715929845093,-157.051714,0.00012998,2]
[327252811,1715929845103,-157.051714,0.00012998,2]
[327252812,1715929845112,-157.051714,0.00012998,2]
[327252813,1715929845122,-157.051714,0.00012998,2]
[327252814,1715929845132,-157.051714,0.00012998,2]
[327252815,1715929845142,-157.051714,0.00012998,2]
[327252816,1715929845151,-157.051714,0.00012998,2]
[327252817,1715929845161,-157.051714,0.00012998,2]
[327252818,1715929845170,-157.051714,0.00012998,2]
[327252819,1715929845188,-500.0,0.00012999,2]
[327252820,1715929845199,-500.0,0.00012999,2]
[327252821,1715929845208,-500.0,0.00012999,2]
[327252822,1715929845218,-493.71926377,0.00012999,2]
[327252823,1715929845228,-728.57,0.00012999,2]
[327252824,1715929845239,-728.57,0.00012999,2]
[327252825,1715929845250,-728.57,0.00012999,2]
[327252826,1715929845260,-728.57,0.00012999,2]
[327252827,1715929845272,-728.57,0.00012999,2]
[327252828,1715929845281,-728.57,0.00012999,2]
[327252829,1715929845291,-728.57,0.00012999,2]
[327252830,1715929845301,-728.57,0.00012999,2]
[327252831,1715929845311,-728.57,0.00012999,2]
[327252832,1715929845321,-728.57,0.00012999,2]
[327252833,1715929845331,-728.57,0.00012999,2]
[327252834,1715929845340,-728.57,0.00012999,2]
[327252835,1715929845350,-728.57,0.00012999,2]
[327252836,1715929845360,-728.57,0.00012999,2]
[327252837,1715929845370,-728.57,0.00012999,2]
[327252838,1715929845381,-728.57,0.00012999,2]
[327252839,1715929845391,-728.57,0.00012999,2]
[327252840,1715929845402,-728.57,0.00012999,2]
[327252841,1715929845412,-728.58608841,0.00012999,2]
[327252842,1715929845423,-1381.86,0.00012999,2]
[327252843,1715929845433,-1381.86,0.00012999,2]
[327252844,1715929845443,-1381.86,0.00012999,2]
[327252845,1715929845452,-1381.86,0.00012999,2]
[327252846,1715929845462,-1381.86,0.00012999,2]
[327252847,1715929845471,-235651.00249244,0.00013,2]
[327252848,1715929845487,-12312.80267959,0.00013,2]
[327252849,1715929845826,-36.07329669,0.00013,2]
[327252850,1715929845863,-415.3,0.00012055,2]
[327252851,1715929845875,-622.49003262,0.00012999,2]
[327252852,1715929845887,-759.36996738,0.00012999,2]
[327252853,1715929845896,-577.55503263,0.00013,2]
[327252854,1715929845908,-1090.78173262,0.00013,2]
[327252855,1715929845920,-84534.87587234,0.00013,2]
[327252856,1715929845930,-101002.22412767,0.00013,2]
[327252857,1715929845941,-453.19867845,0.00013,2]
[327252858,1715929845952,-528.912,0.00013,2]
[327252859,1715929845964,-9330.45386171,0.00013,2]
[327252860,1715929845975,-1468.04531343,0.00013,2]
[327252861,1715929846004,-1381.86,0.00012999,2]
[327252862,1715929846014,-19639.41349107,0.00013,2]
[327252863,1715929846615,-877.46937746,0.00012348,2]
[327252865,1715929846829,-293.55599426,0.00012348,2]
[327252866,1715929846840,-155.0,0.00012998,2]
[327252867,1715929846849,-1381.86,0.00012999,2]
[327252868,1715929846859,-1381.86,0.00012999,2]
[327252869,1715929846868,-18.33620074,0.00012999,2]
[327252870,1715929846881,-744.22499999,0.00012999,2]
[327252871,1715929846893,-619.29879927,0.00012999,2]
[327252872,1715929846902,-1036.75120073,0.00012999,2]
[327252898,1715930951326,-5700.22585583,0.0002308,120]
[327252903,1715931031981,-155.0,9.49e-05,2]
[327252904,1715931031991,-150.0,9.491e-05,2]
[327252905,1715931032001,-12819.03348161,9.492e-05,2]
[327252906,1715931032014,-530.14499983,9.492e-05,2]
[327252907,1715931032025,-2347.49162303,9.492e-05,2]
[327252971,1715931038124,-778.0146266,9.489e-05,2]
[327252974,1715931038134,-153.06441918,9.492e-05,2]
[327252979,1715931039710,-10686.13962447,9.492e-05,2]
[327252981,1715931039720,-1602.18,9.499e-05,2]
[327252982,1715931039730,-250.0,0.00010799,2]
[327252984,1715931039740,-513.27,0.00010959,2]
[327252986,1715931039749,-197.26,0.00010984,2]
[327252988,1715931039759,-200.0,0.00011,2]
[327252989,1715931039769,-5953.1,0.00011038,2]
[327252990,1715931039778,-158.32,0.00011098,2]
[327252991,1715931039788,-1516.88,0.00011111,2]
[327252992,1715931039798,-594.18,0.00011277,2]
[327252993,1715931039808,-1663.67,0.00011392,2]
[327252994,1715931039818,-1003.94,0.00011417,2]
[327252995,1715931039828,-583.03,0.00011422,15]
[327252996,1715931039838,-183.59,0.00011462,2]
[327252997,1715931039848,-167.6,0.00011462,2]
[327252998,1715931039860,-18484.20506758,0.00011479,2]
[327252999,1715931039869,-3407.82,0.00011481,2]
[327253000,1715931039879,-158.32,0.00011676,2]
[327253001,1715931039888,-1602.18,0.00011763,2]
[327253002,1715931039898,-16375.9551,0.0001179,2]
[327253003,1715931039908,-204.8,0.00011832,2]
[327253004,1715931039918,-187.52,0.00011858,2]
[327253005,1715931039929,-19626.96507151,0.00012,2]
[327253006,1715931039939,-1000.0,0.00012,2]
[327253007,1715931039949,-3683.795,0.00012115,2]
[327253008,1715931039960,-3653.932,0.00012115,2]
[327253009,1715931039969,-3617.407,0.00012115,2]
[327253010,1715931039979,-3682.135,0.00012115,2]
[327253012,1715931039989,-1000.0,0.00012222,2]
[327253014,1715931039999,-7500.0,0.000123,2]
[327253016,1715931040010,-85591.0918,0.00012322,2]
[327253018,1715931040021,-233.92003063,0.00012328,2]
[327253019,1715931040031,-500.0,0.00012328,2]
[327253020,1715931040041,-500.0,0.00012328,2]
[327253021,1715931040051,-500.0,0.00012328,2]
[327253023,1715931040061,-500.0,0.00012328,2]
[327253025,1715931040072,-500.0,0.00012328,2]
[327253026,1715931040082,-500.0,0.00012328,2]
[327253027,1715931040090,-500.0,0.00012328,2]
[327253028,1715931040100,-500.0,0.00012328,2]
[327253029,1715931040111,-500.0,0.00012328,2]
[327253030,1715931040122,-830.07,0.00012341,2]
[327253031,1715931040132,-10934.65564137,0.0001242,2]
[327253032,1715931040142,-500.0,0.00012421,2]
[327253033,1715931040152,-500.0,0.00012421,2]
[327253034,1715931040162,-500.0,0.00012421,2]
[327253035,1715931040172,-500.0,0.00012421,2]
[327253036,1715931040182,-295.10355458,0.00012421,2]
[327253037,1715931040192,-500.0,0.00012421,2]
[327253038,1715931040202,-13000.55192808,0.00012421,2]
[327253039,1715931040231,-1663.66909841,0.00012421,2]
[327253040,1715931040243,-770.15961877,0.00012421,2]
[327253044,1715931040280,-48046.4807526,0.00012421,2]
[327253046,1715931040290,-176137.03,0.00012422,2]
[327253048,1715931040300,-500.0,0.00012598,2]
[327253050,1715931040312,-610.07849396,0.00012598,2]
[327253052,1715931040322,-501.73085927,0.00012599,2]
[327253054,1715931040335,-867.0,0.0001261,2]
[327253056,1715931040345,-594.18,0.00012686,2]
[327253058,1715931040358,-4895.0,0.00012704,2]
[327253060,1715931040369,-150.0,0.00012734,2]
[327253062,1715931040379,-150.0,0.00012736,2]
[327253064,1715931040390,-1121.2338278,0.00012739,2]
[327253066,1715931040402,-867.0,0.0001274,2]
[327253068,1715931040412,-150.0,0.00012742,2]
[327253070,1715931040423,-150.0,0.00012745,2]
[327253072,1715931040434,-150.0,0.00012747,2]
[327253074,1715931040445,-150.0,0.00012749,2]